Cogmind - Beta 15 @@@ ROGUE MODE // 2025.07.02 @ 22:34:11 Player: 0Z-4NL Result: Destroyed by H-66 Slayer with Gauss Rifle Performance ------------- Evolutions (4) 2000 Regions Visited (10) 2000 Robots Destroyed (58) 290 Value Destroyed (1410) 1410 Prototype IDs (36) 720 Alien Tech Used (0) 0 Bonus (2386) 2386 TOTAL SCORE: 8806 Bonus ------- Sticky Parts 1000 High Alert Combat Kills 24 Follower Combat Kills 1062 Aligned with FarCom 300 Cogmind --------- Core Integrity 0/850 Matter 290/300 Energy 70/100 System Corruption 0% Temperature Cool (27) Movement Walking (120) Location -6/Extension Parts ------- > --- POWER (1) -------- (None) > --- PROPULSION (5) --- Flexi-carbon Leg > --- UTILITY (7) ------ Enhanced Optical Array Improved Light Armor Plating Hacking Suite > --- WEAPON (2) ------- Mini Grenade Launcher > --- INVENTORY (5) ---- Light Fission Core Phasing Sabre Peak State ------------ > --- POWER ------------ (None) > --- PROPULSION ------- Cesium-ion Thruster Cooled VTOL Module Cooled VTOL Module Cooled VTOL Module > --- UTILITY ---------- Advanced Weight Redist. System Enhanced Optical Array Improved Utility Shielding Experimental Weapon Shielding Improved Light Armor Plating System Shield Improved System Restoration Module > --- WEAPON ----------- Makeshift Hammer Phasing Sabre > --- INVENTORY -------- Fission Core Cooled VTOL Module Advanced Weight Redist. System Improved Signal Interpreter Heavy Rocket Launcher [Rating: 58] Favorites ----------- Power Light Nuclear Core Engine Light Deuterium Engine Power Core Light Nuclear Core Propulsion Cooled VTOL Module Treads Light Treads Leg Flexi-carbon Leg Flight Unit Cooled VTOL Module Utility Improved Light Armor Plating Device Advanced Weight Redist. System Processor Enhanced Optical Array Hackware Hacking Suite Protection Improved Light Armor Plating Weapon Makeshift Hammer Ballistic Gun Light Assault Rifle Launcher Grenade Launcher Impact Weapon Makeshift Hammer Slashing Weapon Phasing Sabre Build | -11 -10 -10 -10 -9 -8 -8 -8 -8 -6 -6 ------- Run | Yrd Mat Min Exi Min Mat Sto Rec Scr Fac Ext Slots Evolved 8 | . . . . . 4 . . . 4 . Power . | . . . . . . . . . . . Propulsion 3 | . . . . . 2 . . . 1 . Utility 5 | . . . . . 2 . . . 3 . Weapon . | . . . . . . . . . . . Parts Attached 39 | 1 4 2 . . 9 . . . 8 15 Power 4 | . . . . . 1 . . . . 3 Engine 1 | . . . . . . . . . . 1 Core 3 | . . . . . 1 . . . . 2 Reactor . | . . . . . . . . . . . Propulsion 12 | . 3 1 . . 3 . . . 3 2 Treads 4 | . 3 1 . . . . . . . . Leg 1 | . . . . . . . . . . 1 Wheel . | . . . . . . . . . . . Hover . | . . . . . . . . . . . Flight 7 | . . . . . 3 . . . 3 1 Utility 16 | . 1 1 . . 3 . . . 5 6 Device 3 | . . . . . 1 . . . 1 1 Storage . | . . . . . . . . . . . Processor 1 | . . . . . . . . . 1 . Hackware 3 | . 1 . . . . . . . 1 1 Protection 9 | . . 1 . . 2 . . . 2 4 Artifact . | . . . . . . . . . . . Weapon 7 | 1 . . . . 2 . . . . 4 Energy Gun . | . . . . . . . . . . . Energy Cannon . | . . . . . . . . . . . Ballistic Gun 1 | 1 . . . . . . . . . . Ballistic Cannon . | . . . . . . . . . . . Launcher 3 | . . . . . 1 . . . . 2 Special Weapon . | . . . . . . . . . . . Impact Weapon 1 | . . . . . 1 . . . . . Slashing Weapon 2 | . . . . . . . . . . 2 Piercing Weapon . | . . . . . . . . . . . Special Melee Weapon . | . . . . . . . . . . . Unidentified Prototypes 2 | . . . . . . . . . 2 . Parts Lost 27 | . 1 2 . . 2 1 1 . 2 18 Power 4 | . . . . . . . . . 1 3 Propulsion 7 | . 1 1 . . . . 1 . . 4 Utility 11 | . . . . . 1 1 . . 1 8 Weapon 5 | . . 1 . . 1 . . . . 3 Highest Loss Streak 7 | . 1 2 . . 2 1 1 . 1 7 To Critical Strikes . | . . . . . . . . . . . Average Backups 3 | 2 4 4 4 5 4 3 3 5 5 2 Power . | . 1 . . 1 . 1 1 1 1 . Propulsion 1 | 1 2 2 2 2 4 2 2 2 1 . Utility . | . . . . . . . . 1 1 . Weapon . | . 1 1 2 2 . . . . 1 1 Tool/Special . | . . . . . . . . . . . Unused Backups 13 | . 1 2 . . 1 . 1 1 3 4 Power 4 | . . 1 . . 1 . . . . 2 Propulsion 6 | . 1 . . . . . 1 1 3 . Utility 1 | . . . . . . . . . . 1 Weapon 2 | . . 1 . . . . . . . 1 Tool/Special . | . . . . . . . . . . . Average Slot Usage (%) 62 | . 44 65 57 57 59 79 66 63 76 62 Core 3 | . . . . . . 9 9 9 5 2 Treads 7 | . 19 28 28 28 15 . . . . . Flight 13 | . . . . . 2 27 21 18 31 16 Device 7 | . . . . . 7 9 9 9 9 8 Processor 2 | . . . . . . . . . 1 6 Hackware 7 | . 9 14 14 14 9 7 . . 2 8 Protection 12 | . . 13 14 14 10 18 18 18 17 12 Ballistic Gun 1 | . 14 9 . . . . . . . . Launcher 1 | . . . . . 7 . . . . . Impact Weapon 4 | . . . . . 7 9 9 9 6 1 Slashing Weapon 1 | . . . . . . . . . . 2 Peak Build Rating 58 | 1 6 8 9 9 25 25 22 22 56 58 Average Rating 26 | . 4 7 8 9 15 24 21 21 46 39 On Entrance 16 | . 1 6 8 9 9 25 22 21 22 53 Naked Turns . | . . . . . . . . . . . Heaviest Build 21 | 1 1 2 1 1 14 14 14 14 16 21 Greatest Support 42 | 3 40 3 3 42 42 22 22 18 28 28 Greatest Overweight (x) 3 | . . . . . 3 . . . . 3 Average Overweight (x) . | . . . . . . . . . . . Largest Inventory Capacity 5 | 5 5 5 5 5 5 5 5 5 5 5 Average Capacity 5 | 5 5 5 5 5 5 5 5 5 5 5 Most Carried 5 | 5 5 5 5 5 5 3 5 5 5 5 Average Carried 3 | 3 4 4 4 5 4 3 3 4 4 2 Final Capacity 5 | 5 5 5 5 5 5 5 5 5 5 5 Final Carried 5 | 5 4 4 5 5 3 3 5 5 5 2 Class Distribution -------------------- 44% | Mutant 32% | Sprinter 9% | Commander-Sprinter 7% | Commander-Mutant 6% | Hacker-Sprinter Dominant Class ---------------- Mutant | -10/Materials Mutant | -10/Mines Mutant | -10/Exiles Mutant | -9/Mines Mutant | -8/Materials Sprinter | -8/Storage Sprinter | -8/Recycling Sprinter | -8/Scraptown Sprinter | -6/Factory Commander-Sprinter | -6/Extension Resources | -11 -10 -10 -10 -9 -8 -8 -8 -8 -6 -6 ----------- Run | Yrd Mat Min Exi Min Mat Sto Rec Scr Fac Ext Matter Collected 759 | 210 25 38 . . 240 . . . 50 196 Remotely . | . . . . . . . . . . . Salvage Created 1949 | . 25 . . . 572 129 338 . 83 802 Parts 77 | . 2 . . . 33 2 2 . 1 37 Haulers Intercepted 7 | . . . . . 3 1 . . 1 2 Recyclers Shooed 1 | . . . . . . . . . . 1 Parts Field Recycled . | . . . . . . . . . . . Retrieved Matter . | . . . . . . . . . . . Parts Self-Destructed . | . . . . . . . . . . . Prevented . | . . . . . . . . . . . Kills | -11 -10 -10 -10 -9 -8 -8 -8 -8 -6 -6 ------- Run | Yrd Mat Min Exi Min Mat Sto Rec Scr Fac Ext Combat Hostiles Destroyed 34 | . 1 1 . . 18 . 3 . . 11 Melee 12 | . 1 1 . . 1 . 1 . . 8 AOE 18 | . . . . . 17 . . . . 1 Classes Destroyed 14 | . 1 1 . . 6 1 1 . . 4 Worker 1 | . . . . . 1 . . . . . Builder 7 | . . . . . 2 1 1 . . 3 Tunneler 2 | . . . . . 2 . . . . . Hauler 7 | . . . . . 3 1 . . 1 2 Recycler 4 | . . . . . 2 . 2 . . . Operator 1 | . . . . . . . . . . 1 Watcher 3 | . . . . . . 2 . . . 1 Swarmer 13 | . . . . . 13 . . . . . Grunt 9 | . 1 . . . 5 . . . . 3 Duelist 2 | . . . . . . . . . . 2 Protector 1 | . . . . . . . . . . 1 Sentry 7 | . . . . . . . 3 . . 4 Behemoth 1 | . . . . . . . . . . 1 Assembled 1 | . . 1 . . . . . . . . Best Kill Streak 10 | . 1 1 . . 10 2 3 . 1 3 Combat Bots Only 8 | . 1 1 . . 8 . 1 . . 3 Max Kills in Single Turn 4 | . 1 1 . . 4 1 1 . 1 1 Gunslinging . | . . . . . . . . . . . Exploded 3 | . . . . . 3 . . . . 1 Melee 1 | . 1 1 . . 1 . 1 . . 1 Uniques/NPCs Destroyed . | . . . . . . . . . . . Combat | -11 -10 -10 -10 -9 -8 -8 -8 -8 -6 -6 -------- Run | Yrd Mat Min Exi Min Mat Sto Rec Scr Fac Ext Hostile Shots Fired 387 | . 57 12 . . 34 4 23 . 11 246 Missed 166 | . 16 6 . . 15 1 12 . 8 108 Hits 221 | . 41 6 . . 19 3 11 . 3 138 Melee 3 | . . 2 . . . . . . . 1 Projectile 218 | . 41 4 . . 19 3 11 . 3 137 AOE 9 | . . 5 . . . . . . . 4 Critical Strikes 6 | . . . . . 1 . . . . 5 Actively Blocked 1 | . . . . . . . . . . 1 Damage Taken 3499 | . 454 246 . . 277 43 161 . 99 2219 Core 1201 | . 134 98 . . 65 . 46 . . 858 Absorbed by Shields 73 | . . . . . . . . . . 73 Redirected to Shielding 154 | . . 22 . . 10 . . . . 122 Regen/Repaired (Parts) 62 | . . . . . . . . . . 62 Core Remaining (%) 62 | 100 . . . 7 . . . 79 . . Volleys Fired 22 | . 7 . . . 13 . . . . 2 Largest 1 | . 1 . . . 1 . . . . 1 Hottest 39 | . 20 . . . 30 . . . . 39 Shots Fired 22 | . 7 . . . 13 . . . . 2 Gun 7 | . 7 . . . . . . . . . Cannon . | . . . . . . . . . . . Launcher 15 | . . . . . 13 . . . . 2 Special . | . . . . . . . . . . . Kinetic 7 | . 7 . . . . . . . . . Thermal . | . . . . . . . . . . . Explosive 15 | . . . . . 13 . . . . 2 Electromagnetic . | . . . . . . . . . . . Robot Hit Streak 7 | . 3 . . . 5 . . . . 7 Robot Miss Streak 2 | . 1 . . . 2 . . . . . Penetration Max . | . . . . . . . . . . . Secondary Targets . | . . . . . . . . . . . Shots Hit Robots 90 | . 5 . . . 17 4 15 . 4 45 Core Hits 69 | . 3 . . 1 32 . 1 . 1 31 Critical Kills 4 | . . . . . 2 . 1 . . 1 Critical Parts Destroyed 7 | . . . . . 2 . 1 . 1 3 Critical Strikes 17 | . . . . . 4 . 2 . 1 10 Smash 11 | . . . . . 4 . 2 . 1 4 Sever 6 | . . . . . . . . . . 6 Melee Attacks 147 | . . . . . 18 15 24 . 21 69 Impact 105 | . . . . . 18 15 24 . 21 27 Slashing 42 | . . . . . . . . . . 42 Piercing . | . . . . . . . . . . . Sneak Attacks 28 | . . . . . 7 2 6 . 1 12 Combat Hostiles 8 | . . . . . . . 3 . . 5 Follow-up Attacks 1 | . . . . . . . . . . 1 Damage Inflicted 6561 | . 47 1 . 1 1960 344 853 . 248 3107 Guns 34 | . 34 . . . . . . . . . Cannons . | . . . . . . . . . . . Explosions 1809 | . . . . . 1124 . . . . 685 Melee 4697 | . . . . . 835 344 853 . 248 2417 Ramming 21 | . 13 1 . 1 1 . . . . 5 Kinetic 34 | . 34 . . . . . . . . . Thermal . | . . . . . . . . . . . Explosive 1809 | . . . . . 1124 . . . . 685 Electromagnetic . | . . . . . . . . . . . Impact 3064 | . . . . . 835 344 853 . 248 784 Slashing 1633 | . . . . . . . . . . 1633 Piercing . | . . . . . . . . . . . Highest Corruption 3 | . . . . . . . 1 1 3 . Average Corruption 2 | . . . . . . . 1 1 2 . Corruption Purged 3 | . . . . . . . . . 3 . Corruption Blocked . | . . . . . . . . . . . Effects 1 | . . . . . . . . . 1 . Message Errors 1 | . . . . . . . . . 1 . Overload Shots . | . . . . . . . . . . . Overflow Damage 1402 | . . . . . 380 214 349 . 106 353 Projectiles 25 | . . . . . . . . . . 25 Explosions 13 | . . . . . 13 . . . . . Melee 1364 | . . . . . 367 214 349 . 106 328 Knockbacks 4 | . 1 . . . . 1 1 . . 1 Impact 4 | . 1 . . . . 1 1 . . 1 Kinetic . | . . . . . . . . . . . Secondary . | . . . . . . . . . . . Self-Inflicted Damage 24 | . . . . . 22 . . . . 2 Shots 1 | . . . . . 1 . . . . . Rammed 33 | . 22 4 . 4 1 . . . . 2 Targets Rammed 35 | . 23 5 . 4 1 . . . . 2 Kicked . | . . . . . . . . . . . Crushed 2 | . 1 1 . . . . . . . . Highest Temperature 8 | . . . . . 8 1 . . . . Average Temperature 4 | . . . . . 8 1 . . . . Received Heat Transfer 876 | . 219 . . . 135 18 72 . 6 426 Siege Activations . | . . . . . . . . . . . Martial Activations . | . . . . . . . . . . . Shielding Activations . | . . . . . . . . . . . Robots Disrupted . | . . . . . . . . . . . Combat Hostiles . | . . . . . . . . . . . Robots Corrupted 13 | . . . . . 3 3 3 . 1 3 Combat Hostiles 4 | . . . . . . . 2 . . 2 Parts Fried 21 | . . . . . 7 5 6 . . 3 Impact Corruptions 39 | . . . . . 12 6 11 . 2 8 Robots Melted . | . . . . . . . . . . . Combat Hostiles . | . . . . . . . . . . . Parts Melted . | . . . . . . . . . . . Heat Transferred . | . . . . . . . . . . . Parts Sabotaged . | . . . . . . . . . . . Parts Stolen . | . . . . . . . . . . . Parts Stripped . | . . . . . . . . . . . Power Chain Reactions . | . . . . . . . . . . . Alert | -11 -10 -10 -10 -9 -8 -8 -8 -8 -6 -6 ------- Run | Yrd Mat Min Exi Min Mat Sto Rec Scr Fac Ext Maximum Alert Level 2 | . . . . . 1 . . . . 2 Low Security (%) 86 | 100 100 100 . 100 85 100 100 . 100 75 Level 1 10 | . . . . . 14 . . . . 17 Level 2 2 | . . . . . . . . . . 6 Level 3 . | . . . . . . . . . . . Level 4 . | . . . . . . . . . . . Level 5 . | . . . . . . . . . . . High Security . | . . . . . . . . . . . Max Security . | . . . . . . . . . . . Peak Influence 497 | . 60 30 . . 227 119 58 . 21 497 Initial 89 | . . 1 . . . 89 43 . . 1 Average 88 | . 11 2 . . 107 102 41 . 3 131 Influence Increases 2493 | . 90 30 . . 571 124 90 . 76 1512 Destroy 0b10 Robot/C 1180 | . 20 . . . 360 . 60 . . 740 Destroy 0b10 Robot/NC 145 | . . . . . 50 20 15 . 5 55 Destroy Leader 128 | . 10 . . . 56 6 . . 2 54 Allied During Kill 256 | . . . . . . . . . . 256 Successful Hack 116 | . . . . . 12 17 15 . 27 45 Disable Machine 90 | . . . . . 15 15 . . 15 45 Destroy Structure 128 | . . . . . 63 6 . . 12 47 Partial Spotted 135 | . . . . . . 30 . . 15 90 Lose Combat Pursuer 315 | . 60 30 . . 15 30 . . . 180 Influence Decreases 2079 | . 85 35 . . 360 222 170 33 73 1101 Entered New Map 231 | . . 4 . . . 122 70 33 . 2 Time Decay 1221 | . 75 31 . . 340 90 90 . 70 525 Lost Part 233 | . 10 . . . 20 10 10 . 3 180 Lost Ally 394 | . . . . . . . . . . 394 Squads Dispatched 11 | . 1 . . . 1 . . . 5 4 Investigation 3 | . . . . . . . . . 1 2 Extermination 2 | . . . . . . . . . 2 . Reinforcement 5 | . 1 . . . 1 . . . 2 1 Assault 1 | . . . . . . . . . . 1 Garrison . | . . . . . . . . . . . Intercept . | . . . . . . . . . . . Searches Triggered . | . . . . . . . . . . . Construction Impeded 2 | . . . . . 1 . . . . 1 Haulers Reinforced 1 | . . . . . . . . . 1 . Active Scanning Responses . | . . . . . . . . . . . Cargo Convoy Interrupts . | . . . . . . . . . . . Stealth | -11 -10 -10 -10 -9 -8 -8 -8 -8 -6 -6 --------- Run | Yrd Mat Min Exi Min Mat Sto Rec Scr Fac Ext Distress Signals 6 | . 1 . . . 3 . . . . 2 Communications Jammed . | . . . . . . . . . . . Distress Signals . | . . . . . . . . . . . Times Spotted 127 | . 17 17 . . 24 6 3 . 5 55 Peak Tracking Total 11 | . 8 11 . . 7 3 1 . 3 9 Tactical Retreats 19 | . 3 3 . . 1 2 . . . 10 Traps | -11 -10 -10 -10 -9 -8 -8 -8 -8 -6 -6 ------- Run | Yrd Mat Min Exi Min Mat Sto Rec Scr Fac Ext Traps Triggered 6 | . 1 . . . 2 . . . 1 2 Indirectly . | . . . . . . . . . . . Trap Hack Attempts . | . . . . . . . . . . . Triggered . | . . . . . . . . . . . Disarmed . | . . . . . . . . . . . Reprogrammed . | . . . . . . . . . . . Reused . | . . . . . . . . . . . Traps Extracted . | . . . . . . . . . . . Installed . | . . . . . . . . . . . Triggered . | . . . . . . . . . . . Machines | -11 -10 -10 -10 -9 -8 -8 -8 -8 -6 -6 ---------- Run | Yrd Mat Min Exi Min Mat Sto Rec Scr Fac Ext Machines Disabled 9 | . . . . . 1 1 . . 1 6 Max in Single Turn 1 | . . . . . 1 1 . . 1 1 Machines Repaired . | . . . . . . . . . . . Machines Dismantled . | . . . . . . . . . . . Machines Sabotaged . | . . . . . . . . . . . Overloaded Fab Kills . | . . . . . . . . . . . Hacking | -11 -10 -10 -10 -9 -8 -8 -8 -8 -6 -6 --------- Run | Yrd Mat Min Exi Min Mat Sto Rec Scr Fac Ext Machines Accessed 51 | . 5 2 1 . 4 6 6 1 10 16 Terminals 44 | . 5 1 . . 4 6 6 . 7 15 Fabricators 1 | . . . . . . . . . 1 . Repair Stations 2 | . . . . . . . . . 1 1 Recycling Units . | . . . . . . . . . . . Scanalyzers . | . . . . . . . . . . . Garrison Access 1 | . . . . . . . . . 1 . Total Hacks 146 | . 11 2 1 . 12 19 18 1 24 58 Successful 73 | . 4 2 1 . 7 11 6 1 9 32 Failed 72 | . 7 . . . 5 8 12 . 15 25 Catastrophic 8 | . 1 . . . 1 . 1 . 4 1 Database Lockouts 1 | . . . . . . . . . . 1 Manual 76 | . 10 3 1 . 12 10 13 . 8 19 Terminals 123 | . 11 1 . . 12 19 18 . 19 43 Fabricators 1 | . . . . . . . . . 1 . Repair Stations 18 | . . . . . . . . . 3 15 Recycling Units . | . . . . . . . . . . . Scanalyzers . | . . . . . . . . . . . Garrison Access 1 | . . . . . . . . . 1 . Terminal Hacks 36 | . 1 2 1 . 2 8 5 1 4 12 Record 1 | . . . . . . . . 1 . . Part Schematic 2 | . . . . . . 1 1 . . . Robot Analysis 2 | . . 1 . . . . . . . 1 Prototype ID Bank 6 | . . . . . . 1 4 . . 1 Open Door 8 | . . 1 . . . 1 . . 1 5 Branch Access Points 1 | . . . . . . . . . 1 . Terminal Index 3 | . . . . . . 1 . . 1 1 Repair Station Index 1 | . . . . . 1 . . . . . Alert Level 1 | . . . . . . . . . . 1 Locate Traps 2 | . . . . . . 2 . . . . Hauler Manifests 5 | . 1 . . . 1 1 . . 1 1 Zone Layout 3 | . . . . . . 1 . . . 2 Proto ID Catalog 1 | . . . 1 . . . . . . . Fabricator Hacks 1 | . . . . . . . . . 1 . Network Status 1 | . . . . . . . . . 1 . Repair Station Hacks 15 | . . . . . . . . . 1 14 Scan Component 8 | . . . . . . . . . 1 7 Repair 7 | . . . . . . . . . . 7 Recycling Unit Hacks . | . . . . . . . . . . . Scanalyzer . | . . . . . . . . . . . Garrison Access Hacks . | . . . . . . . . . . . Unauthorized Hacks 21 | . 3 . . . 5 3 1 . 3 6 Terminals 21 | . 3 . . . 5 3 1 . 3 6 Assimilate 3 | . 1 . . . 1 . . . . 1 Botnet 12 | . 2 . . . 3 2 1 . 2 2 Disrupt 1 | . . . . . . . . . . 1 Operators 5 | . . . . . 1 1 . . 1 2 Fabricators . | . . . . . . . . . . . Repair Stations . | . . . . . . . . . . . Recycling Units . | . . . . . . . . . . . Scanalyzers . | . . . . . . . . . . . Garrison Access . | . . . . . . . . . . . Data Cores Recovered . | . . . . . . . . . . . Used . | . . . . . . . . . . . Hacking Detections 42 | . 5 1 . . 4 5 6 . 7 14 Full Trace Events 5 | . . . . . . . 2 . 1 2 Feedback Events 1 | . . . . . . . 1 . . . Corruption 1 | . . . . . . . 1 . . . Feedback Blocked . | . . . . . . . . . . . Robot Schematics Acquired . | . . . . . . . . . . . Robots Built . | . . . . . . . . . . . Authchips . | . . . . . . . . . . . Time . | . . . . . . . . . . . Total Robot Build Rating . | . . . . . . . . . . . Part Schematics Acquired 2 | . . . . . . 1 1 . . . Parts Built . | . . . . . . . . . . . Authchips . | . . . . . . . . . . . Time . | . . . . . . . . . . . Total Part Build Rating . | . . . . . . . . . . . Parts Repaired 7 | . . . . . . . . . . 7 Time 346 | . . . . . . . . . . 346 Parts Recycled . | . . . . . . . . . . . Recycled Matter . | . . . . . . . . . . . Retrieved Matter . | . . . . . . . . . . . Retrieved Components . | . . . . . . . . . . . Parts Scanalyzed . | . . . . . . . . . . . Part Schematics Acquired . | . . . . . . . . . . . Parts Damaged . | . . . . . . . . . . . Bothacking | -11 -10 -10 -10 -9 -8 -8 -8 -8 -6 -6 ------------ Run | Yrd Mat Min Exi Min Mat Sto Rec Scr Fac Ext Used RIF Installer . | . . . . . . . . . . . Robots Hacked . | . . . . . . . . . . . Non-combat . | . . . . . . . . . . . Combat . | . . . . . . . . . . . Robot Hacks Applied . | . . . . . . . . . . . Relay Couplers Released . | . . . . . . . . . . . Fabnet Peak Effective % . | . . . . . . . . . . . Robots Rewired 20 | . . . . . . . . . . 20 Allies Hacked . | . . . . . . . . . . . Hacks Repelled . | . . . . . . . . . . . Allies | -11 -10 -10 -10 -9 -8 -8 -8 -8 -6 -6 -------- Run | Yrd Mat Min Exi Min Mat Sto Rec Scr Fac Ext Total Allies 27 | . 1 . . . 1 . . . . 25 Largest Group 10 | . 1 . . . 1 . . . . 10 Highest-Rated Group 422 | . 10 . . . 10 . . . . 422 Highest-Rated Ally 159 | . 10 . . . 10 . . . . 159 Total Orders 11 | . . . . . . . . . . 11 STAY 4 | . . . . . . . . . . 4 FOLLOW 5 | . . . . . . . . . . 5 AID 2 | . . . . . . . . . . 2 Ally Attacks 207 | . . . . . . . . . . 207 Total Damage 4916 | . . . . . . . . . . 4916 Kills 35 | . . . . . . . . . . 35 Allies Corrupted . | . . . . . . . . . . . Allies Melted . | . . . . . . . . . . . Intel | -11 -10 -10 -10 -9 -8 -8 -8 -8 -6 -6 ------- Run | Yrd Mat Min Exi Min Mat Sto Rec Scr Fac Ext Active Infowar (turns) 1922 | . . . . . . . . . 126 1796 Optics 1922 | . . . . . . . . . 126 1796 Robot Analysis Total 2 | . . 1 . . . . . . . 1 Derelict Logs Recovered 2 | . . 2 . . . . . . . . Drone Launches . | . . . . . . . . . . . Drone Recoveries . | . . . . . . . . . . . Exploration | -11 -10 -10 -10 -9 -8 -8 -8 -8 -6 -6 ------------- Run | Yrd Mat Min Exi Min Mat Sto Rec Scr Fac Ext Turns Passed 4501 | 31 304 273 124 35 895 198 190 271 384 1796 Spaces Moved 6859 | 45 467 508 246 36 866 452 441 838 1115 1845 Core 2480 | 45 466 508 246 35 700 . . . . 480 Treads 3 | . 1 . . 1 1 . . . . . Legs 5 | . . . . . . . . . . 5 Wheels . | . . . . . . . . . . . Hover . | . . . . . . . . . . . Flight 4371 | . . . . . 165 452 441 838 1115 1360 Fastest Speed 26 | 50 50 50 50 50 30 30 30 32 26 26 Average Speed 43 | 50 50 50 50 52 91 30 31 32 26 37 Slowest Speed 200 | 50 160 50 50 152 200 30 32 32 32 200 Overloaded Moves . | . . . . . . . . . . . Propulsion Burnouts . | . . . . . . . . . . . Robots Hopped 20 | . . . . . . 1 1 . 9 9 Potential Cave-ins 4 | . . 4 . . . . . . . . Cave-ins Triggered . | . . . . . . . . . . . Exploration Rate (%) 54 | 3 59 78 60 16 46 48 98 59 38 91 Regions Visited 10 Branch Regions 7 Pre-discovered Areas 3 | . . 2 . . . 1 . . . . Known Exits Taken 1 | . . . . . . . . . 1 . Unknown Exits Taken 9 | 1 1 1 1 1 1 1 1 1 . . Scrap Searched 5 | . . 1 . . . . . 4 . . Spaces Dug 36 | . . . . . 6 6 . . 12 12 Terrain Destroyed 106 | . . . . . 67 6 . . 12 21 Melee 33 | . . . . . 3 6 . . 12 12 Projectile . | . . . . . . . . . . . AOE 73 | . . . . . 64 . . . . 9 Terrain Rammed . | . . . . . . . . . . . Walls Destroyed . | . . . . . . . . . . . Machines Disabled . | . . . . . . . . . . . Actions | -11 -10 -10 -10 -9 -8 -8 -8 -8 -6 -6 --------- Run | Yrd Mat Min Exi Min Mat Sto Rec Scr Fac Ext Total 8143 | 53 515 524 246 49 930 497 467 841 1173 2848 Wait 813 | . 9 5 . 10 16 32 . . 32 709 Move 6809 | 44 466 507 245 35 865 449 438 837 1096 1827 Hop 20 | . . . . . . 1 1 . 9 9 Pick Up 35 | 7 3 3 1 . 4 . 3 2 4 8 Fast Attach 27 | . 3 1 . . 7 . . . 7 9 Attach 19 | 1 3 1 . . 5 . . . 1 8 Detach . | . . . . . . . . . . . Swap . | . . . . . . . . . . . Drop 13 | 1 1 2 . . 1 . 1 2 3 2 Fire 22 | . 7 . . . 13 . . . . 2 Melee 145 | . . . . . 18 15 24 . 21 67 Ram 2 | . . . . . . . . . . 2 Kick . | . . . . . . . . . . . Crush 33 | . 23 5 . 4 1 . . . . . Escape Stasis 17 | . . . . . . . . . . 17 Rewire 188 | . . . . . . . . . . 188 Trap . | . . . . . . . . . . . Miscellaneous . | . . . . . . . . . . . Route ------- -11/Scrapyard -10/Materials (discovered 3 exits: [*Mat x2] / *Min) -10/Mines (discovered 3 exits: [*Mat] / *Exi / [*Sub]) -10/Exiles -9/Mines -8/Materials (discovered 2 exits: [*Fac] / *Sto) -8/Storage -8/Recycling (discovered 2 exits: *Fac / *Scr) -8/Scraptown -6/Factory (discovered 6 exits: [*Fac x2] / *Low x2 / *Ext x2) -6/Extension (discovered 2 exits: [*Fac] / [*Cet]) History --------- Turn | Location | Event 6 | -11/Scrapyard | Discovered new exit (range 15) 32 | -11/Scrapyard | Entered Materials 140 | -10/Materials | Discovered new exit (range 4) 183 | -10/Materials | Discovered new exit (range 4) 293 | -10/Materials | Discovered new exit (range 13) 306 | -10/Materials | Build established: Mutant 334 | -10/Materials | Core integrity fell below 50% 336 | -10/Materials | Entered Mines 358 | -10/Mines | Met a Derelict who couldn't figure out how to use a Trap Extractor 389 | -10/Mines | Assembled infested the area 394 | -10/Mines | Assisted by a Guerilla fighting off Assembled 401 | -10/Mines | Learned location of Zion (-6) 410 | -10/Mines | Learned location of Storage (-8) 413 | -10/Mines | Discovered new exit (range 10) 426 | -10/Mines | Discovered new exit (range 3) 443 | -10/Mines | A weapon hastily lodged in a ceiling crevice suddenly fell to the ground 501 | -10/Mines | Core integrity fell below 20% 582 | -10/Mines | Learned Materials garrison access intel 587 | -10/Mines | Found a damaged Exp. Sensor Array with a note attached 607 | -10/Mines | Deemed a non-threat by the Exiles lab entrance 607 | -10/Mines | Discovered new exit (range 5) 609 | -10/Mines | Entered Exiles 622 | -10/Exiles | Met 8R-AWN 630 | -10/Exiles | Met EX-HEX 664 | -10/Exiles | Met EX-BIN 670 | -10/Exiles | Aligned with FarCom system 670 | -10/Exiles | Given EX-Vault access code 682 | -10/Exiles | Opened EX-Vault 695 | -10/Exiles | Warned to stay clear of 0b10 Research branches 710 | -10/Exiles | Met EX-DEC 727 | -10/Exiles | Discovered new exit (range 14) 733 | -10/Exiles | Entered Mines 763 | -9/Mines | Discovered new exit (range 5) 768 | -9/Mines | Entered Materials 768 | -8/Materials | Evolved 4 slots: Propulsion x2, Utility x2 769 | -8/Materials | Loaded intel: 1 garrison access location 867 | -8/Materials | Destroyed 7 combat bots 951 | -8/Materials | Discovered new exit (range 14) 1152 | -8/Materials | Discovered new exit (range 13) 1610 | -8/Materials | Destroyed 8 combat bots 1663 | -8/Materials | Entered Storage 1774 | -8/Storage | Learned location of Armory (-4) 1860 | -8/Storage | Used back door to open Recycling access 1860 | -8/Storage | Discovered new exit (range 5) 1861 | -8/Storage | Entered Recycling 1894 | -8/Recycling | Build established: Sprinter 1918 | -8/Recycling | Discovered new exit (range 16) 2043 | -8/Recycling | Scanned before Scraplab entrance 2047 | -8/Recycling | Entered Scraplab 2050 | -8/Recycling | Discovered new exit (range 3) 2051 | -8/Recycling | Entered Scraptown 2052 | -8/Scraptown | System corruption cleaned by C-Scrubber 2121 | -8/Scraptown | Visited IN-MT5's Study 2129 | -8/Scraptown | Visited The Evicted 2131 | -8/Scraptown | Visited Cyclists 2143 | -8/Scraptown | Visited CPS Storage 2212 | -8/Scraptown | Visited TADAMA 2221 | -8/Scraptown | Visited Assassins FH 2275 | -8/Scraptown | Visited CR-KLE's Repair Center 2282 | -8/Scraptown | Turned away by UFD registrar 2304 | -8/Scraptown | Discovered new exit (range 5) 2322 | -8/Scraptown | Entered Factory 2322 | -6/Factory | Evolved 4 slots: Propulsion x1, Utility x3 2584 | -6/Factory | Discovered new exit (range 8) 2584 | -6/Factory | Identified exit to Lower Caves 2584 | -6/Factory | Identified exit to Extension 2651 | -6/Factory | Discovered new exit (range 16) 2706 | -6/Factory | Entered Extension 2854 | -6/Extension | Rescued a captive Derelict 2992 | -6/Extension | Spotted B-75 Beast 3032 | -6/Extension | Lost 3 allies 3253 | -6/Extension | Repaired Adv. Weight Redist. System 3253 | -6/Extension | Repaired Cesium-ion Thruster 3254 | -6/Extension | Repaired Faulty Cld. VTOL Module 3254 | -6/Extension | Repaired Exp. Weapon Shielding 3255 | -6/Extension | Repaired Mak. Hammer 3293 | -6/Extension | Repaired Adv. Weight Redist. System 3332 | -6/Extension | Repaired Imp. Light Armor Plating 3603 | -6/Extension | Lost 4 allies 3762 | -6/Extension | Spotted B-75 Beast 3813 | -6/Extension | Destroyed B-75 Beast 3850 | -6/Extension | Core integrity fell below 50% 3874 | -6/Extension | Rescued a captive Derelict 3876 | -6/Extension | Rescued a captive Derelict 3884 | -6/Extension | Lost 7 parts (2p1n3u1w) 3947 | -6/Extension | Rescued a captive Derelict 3974 | -6/Extension | Lost 3 parts (1n2u) 4024 | -6/Extension | Rescued A7 4347 | -6/Extension | Central database locked down 4379 | -6/Extension | Discovered new exit (range 15) 4380 | -6/Extension | Discovered new exit (range 10) 4456 | -6/Extension | First assault squad dispatched 4460 | -6/Extension | Core integrity fell below 20% 4463 | -6/Extension | Extracted ID and sensor layout for unrecognized location from A7's data core 4493 | -6/Extension | Disrupted transfer network 4502 | -6/Extension | Destroyed by H-66 Slayer with Gauss Rifle Last Messages --------------- payload. 04493_ H-66 Slayer unfolds itself. 04493_ 0B-U1Z(g) destroyed. 04493_ Penetrated by Slug. 04493_ Acquired Flexi-carbon Leg. 04495_ Acquired 10 matter. 04496_ Penetrated by Slug. 04497_ The unstable cave ceiling collapses. 04498_ Acquired Mni. Grenade Launcher. 04498_ YS-ATJ(g) destroyed. 04499_ Acquired 10 matter. 04499_ Penetrated by Slug. 04499_ Imp. Light Armor Plating destroyed. 04499_ Penetrated by Slug. 04500_ 47-XJ4(g) destroyed. 04501_ Phasing Sabre destroyed. 04502_ The unstable cave ceiling collapses. 04502_ Acquired Imp. Light Armor Plating. 04502_ Critical hit (Burn: +37). 04502_ Penetrated by Slug. Map ----- +----------------------------------------------------+ | ##### #??????# ] ]]#?# "#???? | | #??????# #?# T#???? | | ##### #??????# #?# "#???? | | ????# ###########+##### ##???? | | ????# #????? | | ????#################" #????? | | ????????????????????## #????? | | ?????????????????????# #????? | | ?????????????????????# #????? | | ?????????????????????# #????? | | ?????????????????????# #????? | | ?????????????????????# #????? | | ?????????????????????# #????? | | ?????????????????????# #????? | | ?????????????????????# ##???? | | ?????????????????????# ;#???? | | ?????????????????????# ;##??? | | ?????????????????????# =# #??? | | ?????????????????##??####=%!##??? | | ???????????????### #####=#%*###?? | | ????????????#### ## !%% ### | | ############# ## # == # # | | # | | = %*h<% | | % %= !%%!!! % # | | != R% %%!%=!%*@% ## | | %! kRk %!%/%[% = g # | | ############# #*#%[ *%[ g